bitfinex-derivatives/quotes_ETHF0:USTF0_20250727
["timestamp","ask_amount","ask_price","bid_price","bid_amount"]
[1753591096495,2.22748,3785.9,3785.8,3.2078]
[1753591096796,2.22748,3785.9,3785.4,0.98865]
[1753591096797,2.22755,3785.4,3785.3,3.2078]
[1753591097185,2.22755,3785.4,3785.3,3.3967]
[1753591097498,2.22755,3785.4,3785.3,4.6427]
[1753591097697,2.22755,3785.4,3785.3,3.9873]
[1753591098894,1.6994,3785.4,3785.3,4.97597]
[1753591099198,1.6994,3785.4,3785.3,5.17087]
[1753591099391,2.22755,3785.4,3785.3,4.1512]
[1753591099595,2.22755,3785.4,3785.3,3.3967]
[1753591100191,2.22755,3785.4,3785.3,3.2078]
[1753591100391,0.6747,3785.0,3784.9,3.73602]
[1753591100593,1.6994,3785.0,3784.9,4.22152]
[1753591100901,2.22761,3785.0,3784.9,4.22152]
[1753591101094,1.6994,3785.0,3784.9,4.22152]
[1753591101398,1.6994,3785.0,3784.9,5.17092]
[1753591102100,2.22761,3785.0,3784.9,4.6427]
[1753591102305,2.22761,3785.0,3784.9,3.9873]
[1753591102598,2.22761,3785.0,3784.9,3.2078]
[1753591102798,2.22767,3784.6,3784.5,3.2078]
[1753591103195,2.22767,3784.6,3784.5,3.92498]
[1753591103502,2.22767,3784.6,3784.5,5.17098]
[1753591104096,2.22767,3784.6,3784.5,3.2078]
[1753591104296,2.22767,3784.6,3784.5,3.9873]
[1753591104499,2.22767,3784.6,3784.5,4.6427]
[1753591105203,1.6994,3784.6,3784.5,5.17098]
[1753591106195,2.22767,3784.6,3784.5,4.6427]
[1753591106398,2.22767,3784.6,3784.5,3.9873]
[1753591106598,2.22767,3784.6,3784.5,3.6933]
[1753591106809,2.22767,3784.6,3784.5,3.2078]
[1753591107007,0.6747,3784.2,3783.8,0.19556801]
[1753591107202,2.22776,3783.9,3783.8,0.19556801]
[1753591112505,22.9264,3783.9,3783.8,1.61556801]
[1753591112810,23.45076,3783.9,3783.8,1.61556801]
[1753591113303,23.45176,3783.9,3783.8,1.61556801]
[1753591113907,23.45176,3783.9,3783.8,0.19556801]
[1753591114410,2.2852,3782.9,3782.8,1.42]
[1753591114603,23.5052,3782.9,3782.8,0.7768]
[1753591114804,23.5052,3782.9,3782.8,0.4922]
[1753591115409,1.7567,3782.6,3782.5,1.42]
[1753591115610,2.28524,3782.6,3782.5,1.42]
[1753591116213,2.28524,3782.6,3782.5,1.94856]
[1753591116402,2.28524,3782.6,3782.5,1.42]
[1753591116606,2.28524,3782.6,3782.5,0.4791]
[1753591116913,1.0023,3782.4,3782.3,2.23699]
[1753591117114,0.7942,3782.4,3782.3,2.23699]
[1753591117309,22.0432,3782.4,3782.3,2.23699]
[1753591118212,0.7942,3782.4,3782.3,2.23699]
[1753591118414,22.0472,3782.4,3782.3,2.23699]
[1753591118614,23.53827,3782.4,3782.3,0.4922]
[1753591118815,23.0097,3782.4,3782.3,0.1945]
[1753591119020,23.0097,3782.4,3782.3,1.94859]
[1753591119217,23.53827,3782.4,3782.3,1.42]
[1753591119511,23.53427,3782.4,3782.3,1.94859]
[1753591119815,23.53427,3782.4,3782.3,1.42]
[1753591120117,2.28527,3782.4,3782.3,1.94859]
[1753591120305,23.53127,3782.4,3782.3,1.94859]
[1753591121111,2.28527,3782.4,3782.3,1.94859]
[1753591121320,23.0057,3782.4,3782.3,1.94859]
[1753591121511,22.0392,3782.4,3782.3,2.23699]
[1753591122223,21.7456,3782.4,3782.3,2.23699]
[1753591122722,0.5016,3782.4,3782.3,2.23699]
[1753591123020,21.7446,3782.4,3782.3,2.23699]
[1753591123219,21.7416,3782.4,3782.3,2.23699]
[1753591124221,21.7426,3782.4,3782.3,2.23699]
[1753591125218,21.7396,3782.4,3782.3,2.23699]
[1753591126125,0.5016,3782.4,3782.3,2.23699]
[1753591126425,21.5319,3782.4,3782.3,2.23699]
[1753591126625,21.23,3782.4,3782.3,2.23699]
[1753591127422,0.6678,3782.7,3782.6,0.52854]
[1753591127628,21.5309,3782.7,3782.6,2.23694]
[1753591127829,0.3019,3782.7,3782.6,2.23694]
[1753591128028,21.5309,3782.7,3782.6,2.23694]
[1753591128221,22.55173,3782.7,3782.6,2.23694]
[1753591128423,22.6994,3782.7,3782.6,2.23694]
[1753591128823,23.51423,3782.7,3782.6,2.23694]
[1753591129432,21.7296,3782.7,3782.6,2.23694]
[1753591130325,0.5016,3782.7,3782.6,2.23694]
[1753591130530,21.7226,3782.7,3782.6,2.23694]
[1753591131125,0.5016,3782.7,3782.6,2.23694]
[1753591131320,21.5209,3782.7,3782.6,2.23694]
[1753591131726,0.52853,3782.7,3782.6,3.701]
[1753591131929,0.52853,3782.7,3781.9,0.52864]
[1753591131930,1.7567,3782.3,3781.9,0.52864]
[1753591132127,1.7567,3781.9,3781.8,4.12663143]
[1753591132336,1.7567,3781.9,3781.8,5.15663143]
[1753591132632,2.28534,3781.9,3781.8,5.35213143]
[1753591132833,1.7567,3781.9,3781.8,5.35213143]
[1753591134934,2.28534,3781.9,3781.8,5.35213143]
[1753591135228,2.28534,3781.9,3781.8,4.82347143]
[1753591135834,1.7567,3781.9,3781.8,5.35213143]
[1753591136037,2.28534,3781.9,3781.8,4.82347143]
[1753591137230,3.07876591,3781.9,3781.8,4.82347143]
[1753591138034,2.55012591,3781.9,3781.8,5.35213143]
[1753591138234,3.07876591,3781.9,3781.8,5.35213143]
[1753591138932,2.55012591,3781.9,3781.8,5.35213143]
[1753591139139,22.80762591,3781.9,3781.8,5.65543143]
[1753591139342,0.4874,3782.1,3782.0,2.27523]
[1753591139641,22.50104719,3782.1,3782.0,2.27523]
[1753591140233,23.72714719,3782.1,3781.8,3.40347143]
[1753591140433,2.24214,3781.9,3781.8,4.19197143]
[1753591140633,3.03578719,3781.9,3781.8,4.19197143]
[1753591142734,2.50714719,3781.9,3781.8,4.72063143]
[1753591142929,2.50714719,3781.9,3781.8,5.17553143]
[1753591143138,3.03578719,3781.9,3781.8,4.64687143]
[1753591143334,3.03578719,3781.9,3781.8,5.17553143]
[1753591143534,3.03578719,3781.9,3781.8,5.37543143]
[1753591145042,2.50714719,3781.9,3781.8,5.37543143]
[1753591145243,23.73514719,3781.9,3781.8,5.37543143]
[1753591146138,24.26155545,3781.9,3781.8,5.37543143]
[1753591146337,23.73291545,3781.9,3781.8,5.37543143]
[1753591147243,23.72591545,3781.9,3781.8,5.37543143]
[1753591148242,23.71991545,3781.9,3781.8,5.37543143]
[1753591148745,24.24855545,3781.9,3781.8,4.84677143]
[1753591149245,24.24355545,3781.9,3781.8,4.64687143]
[1753591149841,24.24355545,3781.9,3781.8,3.40347143]
[1753591150038,24.24355545,3781.9,3781.8,0.19567143]
[1753591150439,24.24055545,3781.9,3781.8,0.19567143]
[1753591151438,24.24355545,3781.9,3781.8,1.32233143]
[1753591151644,24.24355545,3781.9,3781.8,1.96773143]
[1753591151943,24.24355545,3781.9,3781.8,1.43907143]
[1753591152244,24.24055545,3781.9,3781.8,1.43907143]
[1753591152743,24.24055545,3781.9,3781.8,1.96773143]
[1753591152939,24.24055545,3781.9,3781.8,2.16763143]
[1753591153139,2.19871545,3781.9,3781.8,2.47093143]
[1753591153344,22.76601545,3781.9,3781.8,2.47093143]
[1753591153744,24.23555545,3781.9,3781.8,1.63897143]
[1753591154539,24.23555545,3781.9,3781.8,0.38617143]
[1753591154744,24.23555545,3781.9,3781.8,0.19567143]
[1753591155140,23.44414,3781.9,3781.8,0.19567143]
[1753591155342,2.24214,3781.9,3781.8,0.19567143]
[1753591155542,23.45014,3781.9,3781.8,0.72433143]
[1753591155738,23.45014,3781.9,3781.8,0.19567143]
[1753591157942,26.65794,3781.9,3781.8,0.19567143]
[1753591158446,27.44626402,3781.9,3781.8,0.19567143]
[1753591158746,2.20987,3781.0,3780.9,4.6511]
[1753591158944,23.40887,3781.0,3780.9,4.6511]
[1753591159443,22.8801,3781.0,3780.9,5.17988]
[1753591160041,23.40887,3781.0,3780.9,5.17988]
[1753591160241,23.40887,3781.0,3780.9,4.6511]
[1753591160441,23.40887,3781.0,3780.9,5.17988]
[1753591160647,23.40887,3781.0,3780.9,4.6511]
[1753591161142,22.8801,3781.0,3780.9,5.17988]
[1753591161744,23.40887,3781.0,3780.9,5.17988]
[1753591162849,22.8801,3781.0,3780.9,5.17988]
[1753591163241,23.40887,3781.0,3780.9,5.17988]
[1753591164243,22.8801,3781.0,3780.9,5.17988]
[1753591164644,3.2078,3781.5,3781.3,0.52873]
[1753591164645,0.4415,3781.4,3781.3,0.52873]
[1753591164843,0.9289,3781.7,3781.6,0.91908]
[1753591165050,22.1209,3781.7,3781.6,2.27528]
[1753591165445,21.6814,3781.7,3781.6,2.27528]
[1753591165951,0.2935,3781.7,3781.6,2.27528]
[1753591166152,0.7726,3782.0,3781.9,2.27524]
[1753591166344,21.6814,3782.0,3781.9,2.27524]
[1753591166851,22.46514273,3782.0,3781.9,2.27524]
[1753591167449,21.6814,3782.0,3781.9,2.27524]
[1753591168445,22.4005,3782.0,3781.9,2.27524]
[1753591168953,22.8676,3782.0,3781.9,1.97194]
[1753591171848,0.4874,3782.0,3781.9,2.26524]
[1753591172047,21.6704,3782.0,3781.9,2.26524]
[1753591172251,21.6654,3782.0,3781.9,2.26524]
[1753591173653,21.6614,3782.0,3781.9,2.26524]
[1753591174157,21.6594,3782.0,3781.9,2.26524]
[1753591174653,21.946,3782.0,3781.9,2.26524]
[1753591175353,22.3799,3782.0,3781.9,2.26524]
[1753591175552,21.6594,3782.0,3781.9,2.26524]
[1753591176550,22.45323913,3782.0,3781.9,2.26524]
[1753591176749,21.6594,3782.0,3781.9,2.26524]
[1753591177657,22.0933,3782.0,3781.9,2.26524]
[1753591177854,1.2079,3782.0,3781.9,2.26524]
[1753591178064,21.4555,3782.0,3781.9,2.26524]
[1753591178762,1.2121,3782.6,3781.8,1.32162]
[1753591179058,1.71928646,3782.5,3782.4,2.27427]
[1753591179254,22.3771,3782.5,3782.4,2.27427]
[1753591180062,1.6784,3782.5,3782.4,1.98097]
[1753591180258,22.8414,3782.5,3782.4,1.98097]
[1753591180953,23.36996,3782.5,3782.4,1.98097]
[1753591181354,0.6745,3782.3,3782.2,3.2078]
[1753591181653,1.6784,3782.2,3782.1,1.2388]
[1753591181859,1.6784,3782.2,3782.1,1.981]
[1753591182250,2.207,3782.2,3782.1,1.981]
[1753591182454,23.371,3782.2,3782.1,4.02]
[1753591182755,22.8424,3782.2,3782.1,1.98101]
[1753591183158,23.371,3782.2,3782.1,1.98101]
[1753591185061,22.8424,3782.2,3782.1,1.98101]
[1753591186363,23.371,3782.2,3782.1,1.98101]
[1753591186660,22.8424,3782.2,3782.1,1.98101]
[1753591187963,23.371,3782.2,3782.1,1.98101]
[1753591188158,22.8424,3782.2,3782.1,1.98101]
[1753591189760,0.2961,3782.2,3782.1,2.27431]
[1753591190063,0.4916,3782.5,3782.4,2.27427]
[1753591190259,21.6376,3782.5,3782.4,2.27427]
[1753591190454,22.0715,3782.5,3782.4,2.27427]
[1753591190662,22.3581,3782.5,3782.4,2.27427]
[1753591191065,0.2961,3782.8,3782.7,1.4428]
[1753591191261,21.4391,3782.8,3782.7,2.27423]
[1753591191461,21.6346,3782.8,3782.7,2.27423]
[1753591191661,21.9212,3782.8,3782.7,2.27423]
[1753591191861,22.3551,3782.8,3782.7,2.27423]
[1753591192366,22.3561,3782.8,3782.7,2.27423]
[1753591192963,1.2121,3783.2,3783.1,1.23867]
[1753591193265,22.3531,3783.2,3783.1,2.27417]
[1753591193459,0.4916,3783.2,3783.1,2.27417]
[1753591193659,0.2961,3783.2,3783.1,2.27417]
[1753591194259,0.4916,3783.2,3783.1,2.27417]
[1753591194461,1.2121,3783.2,3783.1,2.27417]
[1753591194660,1.6784,3783.2,3783.1,1.98087]
[1753591195465,1.6784,3783.2,3783.1,2.27417]
[1753591197064,0.9255,3782.7,3782.6,3.2078]
[1753591197260,1.6784,3782.5,3782.4,0.83147]
[1753591197767,2.20696,3782.5,3782.4,1.2605]
[1753591198069,1.6784,3782.5,3782.4,1.98997]
[1753591198571,0.4916,3782.5,3782.4,2.28597]
[1753591198768,0.5285,3783.0,3782.9,0.5038]
[1753591198974,2.13516,3783.9,3783.8,0.6922]
[1753591199162,0.2,3783.9,3783.8,1.7374]
[1753591199369,0.7113,3783.9,3783.8,1.7374]
[1753591199565,1.1367,3783.9,3783.8,1.7374]
[1753591199869,0.2,3783.9,3783.8,2.26578]
[1753591200266,1.1367,3783.9,3783.8,2.26578]
[1753591200663,1.3334,3783.9,3783.8,2.26578]
[1753591200868,1.91,3783.9,3783.8,2.26578]
[1753591201570,1.6366,3783.9,3783.8,2.26578]
[1753591202169,1.91,3783.9,3783.8,2.26578]
[1753591202671,1.6366,3783.9,3783.8,2.26578]
[1753591203075,1.91,3783.9,3783.8,2.26578]
[1753591203367,1.91,3783.9,3783.8,0.4975]
[1753591203368,2.43836,3783.9,3783.8,0.4975]
[1753591203562,1.71,3783.6,3783.5,0.6922]
[1753591203766,1.71,3783.6,3783.5,0.1947]
[1753591203966,2.2384,3783.6,3783.5,0.1947]
[1753591204368,2.2384,3783.6,3783.5,0.4893]
[1753591204568,2.2384,3783.6,3783.5,0.6922]
[1753591204872,0.7286,3783.8,3783.7,0.1947]
[1753591205069,1.2399,3783.8,3783.7,1.22688]
[1753591205372,1.71,3783.8,3783.7,2.26578]
[1753591205674,1.71,3783.8,3783.7,1.7374]
[1753591206372,2.23838,3783.8,3783.7,1.7374]
[1753591206763,1.2031,3783.8,3783.1,3.2078]
[1753591206964,2.23846,3783.2,3783.1,4.9452]
[1753591207173,1.71,3783.2,3783.1,3.9]
[1753591207475,1.4366,3783.5,3783.4,1.7374]
[1753591207879,1.4366,3783.5,3783.4,2.26583]
[1753591208078,1.71,3783.5,3783.4,2.26583]
[1753591208881,2.23842,3783.5,3783.4,2.26583]
[1753591209277,1.71,3783.5,3783.4,2.26583]
[1753591213688,2.23842,3783.5,3783.4,2.26583]
[1753591213871,2.23842,3783.5,3783.4,1.7374]
[1753591214381,2.23842,3783.5,3783.4,2.26583]
[1753591215185,2.23842,3783.5,3783.4,1.7374]
[1753591216080,1.71,3783.5,3783.4,2.26583]
[1753591217383,1.2399,3783.8,3783.7,2.26579]
[1753591217578,0.4011,3783.9,3783.8,1.22688]
[1753591217773,0.2,3783.9,3783.8,2.26578]
[1753591220386,0.4011,3783.9,3783.8,2.26578]
[1753591220583,0.7113,3783.9,3783.8,2.26578]
[1753591220787,1.4399,3783.9,3783.8,2.26578]
[1753591223192,0.908,3783.9,3783.6,3.2078]
[1753591223387,2.23849,3783.7,3783.6,3.2078]
[1753591224195,2.23849,3783.7,3783.6,3.5024]
[1753591225198,2.23849,3783.7,3783.6,3.2078]
[1753591226998,1.7101,3783.7,3783.6,5.4736]
[1753591227197,0.2,3783.9,3783.8,0.52838]
[1753591227392,0.2,3783.9,3783.8,2.26578]
[1753591228100,0.7049,3783.9,3783.8,2.26578]
[1753591228300,1.1277,3783.9,3783.8,2.26578]
[1753591228799,0.2,3783.9,3783.8,2.26578]
[1753591230697,1.4265,3783.9,3783.8,2.26578]
[1753591233303,0.7049,3783.9,3783.8,2.26578]
[1753591234698,1.1277,3783.9,3783.8,2.26578]
[1753591234903,1.8896,3783.9,3783.8,2.26578]
[1753591236698,1.6161,3783.9,3783.8,2.26578]
[1753591243606,1.4265,3783.9,3783.8,2.26578]
[1753591245508,1.7,3783.9,3783.8,2.26578]
[1753591246008,1.8896,3783.9,3783.8,2.26578]
[1753591248006,1.8896,3783.9,3783.8,1.22058]
[1753591248213,1.8896,3783.9,3783.8,1.01768]
[1753591248416,1.8896,3783.9,3783.8,0.52838]
[1753591248804,1.8896,3783.9,3783.8,2.25398]
[1753591249814,1.6161,3783.9,3783.8,2.25398]
[1753591250815,1.8896,3783.9,3783.8,2.25398]
[1753591252710,0.2,3783.9,3783.8,2.25398]
[1753591252917,0.8037,3784.4,3784.3,2.25391]
[1753591253114,0.7216,3784.6,3784.5,1.20328]
[1753591253306,0.6945,3784.9,3784.8,1.20323]
[1753591253512,0.968,3784.9,3784.8,2.25383]
[1753591254012,1.6896,3784.9,3784.8,2.25383]
[1753591255811,0.7216,3785.2,3785.1,1.2738]
[1753591256117,1.6896,3785.2,3785.1,2.2538]
[1753591258306,1.6878,3785.2,3785.1,1.6823]
[1753591258507,1.6878,3785.2,3785.1,0.2852]
[1753591258712,1.6878,3785.2,3784.7,3.2078]
[1753591258713,1.6878,3785.1,3785.0,0.5282]
[1753591258913,1.6878,3785.1,3785.0,0.8134]
[1753591259813,1.6878,3785.1,3785.0,1.0177]
[1753591260006,1.6878,3785.1,3785.0,1.2202]
[1753591260207,1.6878,3785.1,3785.0,1.9423]
[1753591260609,1.6878,3785.1,3785.0,2.2384]
[1753591261616,6.407402,3785.1,3785.0,2.2384]
[1753591263921,6.407402,3785.1,3785.0,1.805]
[1753591264422,6.935602,3785.1,3785.0,1.2202]
[1753591264721,6.407402,3785.1,3785.0,1.2202]
[1753591265523,6.407402,3785.1,3785.0,1.9423]
[1753591265719,6.935602,3785.1,3785.0,1.0177]
[1753591266225,6.407402,3785.1,3785.0,1.0177]
[1753591266421,6.407402,3785.1,3785.0,1.5089]
[1753591266726,6.407402,3785.1,3785.0,2.2384]
[1753591268223,6.134102,3785.1,3785.0,2.2384]
[1753591269724,4.719602,3785.1,3785.0,2.2384]
[1753591269929,0.11211688,3785.1,3785.0,7.2384]
[1753591270228,1.4261,3785.9,3785.8,1.2201]
[1753591270527,1.4261,3785.9,3785.8,1.4044]
[1753591273429,6.145702,3785.9,3785.8,1.4044]
[1753591274129,6.430902,3785.9,3785.8,1.4044]
[1753591275328,6.619302,3785.9,3785.8,1.2201]
[1753591278428,0.52812,3785.7,3785.5,0.2852]
[1753591278733,1.6997,3785.6,3785.5,1.01764]
[1753591278933,1.6997,3785.6,3785.5,1.22014]
[1753591279635,0.2998,3785.6,3785.5,1.40464]
[1753591280028,0.9227,3785.6,3785.5,1.40464]
[1753591280228,1.2261,3785.6,3785.5,1.40464]
[1753591280429,5.945702,3785.6,3785.5,1.40464]
[1753591280934,6.419302,3785.6,3785.5,1.22014]
[1753591281939,4.719602,3785.6,3785.5,1.40464]
[1753591282126,5.019402,3785.6,3785.5,1.40464]
[1753591282531,6.419302,3785.6,3785.5,1.22014]
[1753591282733,2.22785,3785.4,3785.3,3.2078]
[1753591282934,0.52822,3785.0,3784.9,3.2078]
[1753591283130,0.3034,3784.4,3784.3,0.2852]
[1753591283330,1.6997,3784.4,3784.3,1.01781]
[1753591283935,1.6997,3784.4,3784.3,1.45121]
[1753591284136,1.6997,3784.4,3784.3,1.94981]
[1753591285331,6.419302,3784.4,3784.3,1.94981]
[1753591285937,6.419302,3784.4,3784.3,0.2043]
[1753591286137,6.419302,3784.4,3784.3,0.73261]
[1753591286330,6.419302,3784.4,3784.3,1.01781]
[1753591286531,6.947592,3784.4,3784.3,0.2043]
[1753591286737,1.21731,3784.3,3784.0,1.24694]
[1753591286936,1.6997,3784.1,3784.0,1.45124]
[1753591287126,1.0107,3784.0,3783.9,0.52836]
[1753591287331,0.689,3784.0,3783.9,0.52836]
[1753591287533,1.6943,3784.0,3783.9,0.52836]
[1753591287733,1.6943,3784.0,3783.9,1.49796]
[1753591287934,1.6943,3784.0,3783.9,1.92346]
[1753591288628,0.7924,3784.0,3783.9,2.10816]
[1753591288828,5.855102,3784.4,3784.3,0.52831]
[1753591289030,6.144102,3784.4,3784.3,1.92341]
[1753591289540,6.435902,3784.4,3784.3,1.92341]
[1753591290142,5.011402,3784.4,3784.3,2.10811]
[1753591291742,5.207002,3784.4,3784.3,2.10811]
[1753591292742,6.435902,3784.4,3784.3,1.92341]
[1753591294846,6.435902,3784.4,3784.3,0.52831]
[1753591295936,1.0053,3784.3,3784.0,0.2899]
[1753591296147,1.7163,3784.2,3784.1,0.52832]
[1753591297044,1.7163,3784.2,3784.1,1.01282]
[1753591299146,1.7163,3784.2,3784.1,1.43832]
[1753591300041,1.7163,3784.2,3784.1,1.01282]
[1753591300441,6.435902,3784.2,3784.1,1.01282]
[1753591300643,6.964222,3784.2,3784.1,0.1946]
[1753591301342,6.964222,3784.2,3784.0,0.52835]
[1753591301542,1.7163,3783.9,3783.8,1.43838]
[1753591301743,1.7163,3783.9,3783.8,1.92348]
[1753591304447,1.2234,3783.9,3783.8,2.10818]
[1753591304647,0.7989,3783.9,3783.8,2.10818]
[1753591305148,1.2234,3783.9,3783.8,2.10818]
[1753591305349,5.943002,3783.9,3783.8,2.10818]
[1753591305551,6.435902,3783.9,3783.8,1.92348]
[1753591320367,6.435902,3783.9,3783.8,1.64588]
[1753591320562,6.435902,3783.9,3783.8,0.72298]
[1753591321262,6.435902,3783.9,3783.8,1.00538]
[1753591322164,6.435902,3783.9,3783.8,1.45218]
[1753591322858,6.435902,3783.9,3783.7,3.2078]
[1753591323055,5.958972,3783.9,3783.7,3.73618]
[1753591323262,5.958972,3783.9,3783.3,0.2824]
[1753591323263,1.7428,3783.8,3783.3,0.2824]
[1753591323465,1.0526,3783.3,3783.1,3.4902]
[1753591323658,1.7428,3783.2,3783.1,3.73626]
[1753591323857,1.7428,3783.2,3783.1,3.2078]
[1753591324360,0.3098,3783.2,3783.1,5.36157]
[1753591325565,5.029402,3783.2,3783.1,5.36157]
[1753591326070,0.453,3783.8,3783.5,1.7346]
[1753591326263,1.433,3783.8,3783.7,2.26299]
[1753591328068,1.7428,3783.8,3783.7,2.26299]
[1753591329270,6.462402,3783.8,3783.7,2.26299]
[1753591330269,0.4916,3783.4,3783.3,0.52845]
[1753591330571,1.7428,3783.4,3783.3,0.52845]
[1753591330772,1.7428,3783.4,3783.3,2.26305]
[1753591332166,1.7428,3783.4,3783.3,1.96915]
[1753591332373,1.7428,3783.4,3783.3,1.22305]
[1753591332575,1.7428,3783.4,3783.1,3.6546]
[1753591332576,1.7428,3783.3,3783.2,0.52845]
[1753591333371,1.7428,3783.3,3783.2,1.96915]
[1753591335279,6.462402,3783.3,3783.2,1.96915]
[1753591336272,6.462402,3783.3,3783.2,1.66985]
[1753591339373,6.462402,3783.3,3783.2,1.22305]
[1753591340981,6.462402,3783.3,3783.2,0.52845]
[1753591344278,6.462402,3783.3,3783.0,0.7292]
[1753591344279,6.009402,3783.3,3783.0,0.2824]
[1753591344579,1.7428,3782.7,3782.6,4.73024]
[1753591345182,1.7428,3782.7,3782.6,5.17704]
[1753591345371,6.462402,3782.7,3782.6,5.17704]
[1753591346373,6.462402,3782.7,3782.4,0.2939]
[1753591346374,5.938332,3782.7,3782.4,0.2939]
[1753591346573,1.7428,3782.5,3782.4,1.66997]
[1753591346780,1.7428,3782.5,3782.2,3.2078]
[1753591346781,1.7428,3782.4,3782.3,0.52858]
[1753591346973,0.6902,3782.3,3781.8,3.40347143]
[1753591347173,7.927402,3782.7,3782.5,0.52854]
[1753591347381,1.433,3782.6,3782.5,1.1271]
[1753591347583,1.96154,3782.6,3782.5,1.1271]
[1753591347884,1.7132,3782.4,3782.3,0.71879]
[1753591348280,1.7132,3782.4,3782.3,2.23449]
[1753591348487,6.432802,3782.7,3782.6,1.95184]
[1753591348784,6.432802,3782.7,3782.6,2.23444]
[1753591350085,6.432802,3782.7,3782.6,1.92724]
[1753591350287,6.432802,3782.7,3782.6,2.23444]
[1753591350288,4.719602,3782.7,3782.6,2.23444]
[1753591352088,6.432802,3782.7,3782.6,1.63494]
[1753591352481,6.432802,3782.7,3782.6,1.20264]
[1753591352682,6.432802,3782.7,3782.6,0.71874]
[1753591352880,6.432802,3782.7,3782.6,0.52854]
[1753591355090,6.432802,3782.7,3782.6,2.23444]
[1753591355495,6.132402,3782.7,3782.6,2.23444]
[1753591355892,6.432802,3782.7,3782.6,2.23444]
[1753591356495,6.432802,3782.7,3782.6,1.20264]
[1753591356790,6.432802,3782.7,3782.3,0.3072]
[1753591356791,6.432802,3782.7,3782.4,0.52857]
[1753591356994,1.7132,3782.5,3782.4,0.52857]
[1753591357583,1.7132,3782.5,3782.4,2.23447]
[1753591357584,1.0354,3782.5,3782.4,2.23447]
[1753591357788,0.735,3782.5,3782.4,2.23447]
[1753591357992,0.2949,3782.5,3782.4,2.23447]
[1753591358493,6.432802,3782.7,3782.6,2.23444]
[1753591359497,1.42323343,3784.5,3782.6,2.23444]
[1753591359498,1.89764457,3785.0,3784.9,0.52822]
[1753591359788,6.16734486,3787.1,3784.9,0.52822]
[1753591359789,4.299078,3787.2,3787.1,0.52792]
[1753591359993,0.9782,3787.2,3787.1,3.73572]
[1753591360294,4.5415,3787.2,3787.1,3.2078]
[1753591360492,0.9782,3787.2,3787.1,3.73572]
[1753591360796,0.9782,3787.8,3787.7,0.52783]
[1753591360989,4.5415,3787.8,3787.7,3.73563]
[1753591361585,5.2765,3787.8,3787.7,3.73563]
[1753591362689,9.996102,3787.8,3787.7,3.73563]
[1753591363497,6.432802,3787.8,3787.7,3.73563]
[1753591366101,9.996102,3787.8,3787.7,3.73563]
[1753591366393,9.996102,3787.8,3787.7,3.2078]
[1753591366792,9.996102,3787.8,3787.7,3.73563]
[1753591368395,1.095892,3787.8,3787.7,3.73563]
[1753591370099,0.480172,3787.8,3787.7,8.73563]
[1753591370296,2e-06,3787.8,3787.7,8.73563]
[1753591370497,2e-06,3787.8,3787.7,8.98311286]
[1753591372095,2e-06,3787.8,3787.7,8.98308383]
[1753591372293,0.2949,3788.3,3787.7,8.98308383]
[1753591372294,0.2949,3788.3,3788.2,0.52776]
[1753591372494,0.2949,3788.3,3788.2,3.98301383]
[1753591372797,1.2731,3788.7,3788.6,0.52771]
[1753591373001,1.7132,3788.7,3788.6,3.98296383]
[1753591373205,0.8025,3788.7,3788.6,3.98296383]
[1753591374704,1.2731,3788.7,3788.6,3.98296383]
[1753591375099,1.7132,3788.7,3788.6,3.73551]
[1753591375299,5.2765,3788.7,3788.6,3.73551]
[1753591375495,9.996102,3788.7,3788.6,3.73551]
[1753591380205,9.996102,3788.7,3788.6,4.03425475]
[1753591380399,9.067202,3788.7,3788.6,4.26735475]
[1753591380612,10.198602,3788.7,3788.6,4.26735475]
[1753591381205,10.198602,3788.7,3788.6,3.72885475]
[1753591381404,10.198602,3788.7,3788.6,3.73551]
[1753591381604,10.198602,3788.7,3788.6,3.98293299]
[1753591381803,10.198602,3788.7,3788.6,4.32779756]
[1753591382308,6.180002,3788.7,3788.6,4.86629756]
[1753591382502,6.635302,3788.7,3788.6,4.63319756]
[1753591382706,6.635302,3788.7,3788.6,4.28831857]
[1753591382999,6.635302,3788.7,3788.6,4.86625704]
[1753591383607,6.635302,3788.7,3788.6,4.63315704]
[1753591383803,6.635302,3788.7,3788.6,3.80004704]
[1753591383804,10.198602,3788.7,3788.6,3.80004704]
[1753591384205,10.198602,3788.7,3788.6,4.32775704]
[1753591384706,10.198602,3788.7,3788.6,4.63315704]
[1753591385010,10.198602,3788.7,3788.6,4.86625704]
[1753591385413,10.214202,3788.7,3788.6,4.86625704]
[1753591386000,10.741892,3788.7,3788.6,3.80004704]
[1753591386407,10.231702,3788.7,3788.6,4.86625704]
[1753591387012,10.231702,3788.7,3788.6,4.63315704]
[1753591387407,10.231702,3788.7,3788.6,4.60345704]
[1753591388206,10.231702,3788.7,3788.6,4.32775704]
[1753591389302,10.759392,3788.7,3788.6,4.32775704]
[1753591389506,10.231702,3788.7,3788.6,4.32775704]
[1753591390113,10.759392,3788.7,3788.6,4.32775704]
[1753591391010,10.759392,3788.7,3788.6,3.98291857]
[1753591391208,10.231702,3788.7,3788.6,3.98291857]
[1753591391400,10.759392,3788.7,3788.6,3.45520857]
[1753591391606,2.47658,3788.1,3788.0,3.2078]
[1753591392106,5.5121,3788.1,3788.0,3.73559]
[1753591392411,6.03988,3788.1,3788.0,3.73559]
[1753591392612,6.03988,3788.1,3788.0,3.2078]
[1753591393203,6.03988,3788.1,3787.6,3.2078]
[1753591393204,0.505,3787.7,3787.6,3.2078]
[1753591393410,1.6364,3787.3,3787.2,3.7357]